Cogmind - Beta 10.2 @@@ ROGUE MODE // 2020.12.29 @ 13:09:53 Player: Luigi Panache Result: Destroyed by G-73 Enforcer with Phase Gun Performance ------------- Evolutions (9) 4500 Regions Visited (17) 3400 Robots Destroyed (98) 490 Value Destroyed (2860) 2860 Prototype IDs (47) 940 Alien Tech Used (0) 0 Bonus (831) 831 TOTAL SCORE: 13021 Bonus ------- High Alert Combat Kills 58 Follower Combat Kills 198 Aligned with FarCom 300 Met Data Miner 300 Friendly Fire -25 Cogmind --------- Core Integrity 0/1600 Matter 184/300 Energy 100/100 System Corruption 5% Temperature Cool (9) Movement Core (50) Location -1/Access Parts ------- > --- POWER (2) -------- (None) > --- PROPULSION (5) --- (None) > --- UTILITY (15) ----- Advanced Signal Interpreter > --- WEAPON (3) ------- (None) > --- INVENTORY (4) ---- Light Quantum Reactor Humpback Peak State ------------ > --- POWER ------------ Improved Quantum Reactor > --- PROPULSION ------- Nuclear Pulse Array Q-thruster Q-thruster Q-thruster > --- UTILITY ---------- Medium Storage Unit Advanced Signal Interpreter Advanced Reaction Control System Improved Thermal Shield System Shield > --- WEAPON ----------- (None) > --- INVENTORY -------- Humpback [Rating: 68] Favorites ----------- Power Improved Ion Engine Engine Improved Ion Engine Power Core Light Nuclear Core Reactor Improved Quantum Reactor Propulsion Light Treads Treads Light Treads Leg Aluminum Leg Wheel Wheel Hover Unit Combat Antigrav System Flight Unit Cesium-ion Thruster Utility Lightpack 2.0 Device Advanced Terrain Scanner Storage Lightpack 2.0 Processor Advanced Signal Interpreter Hackware System Shield Protection Light Armor Plating Weapon Heavy EM Pulse Gun Energy Gun Heavy EM Pulse Gun Energy Cannon Light EM Pulse Cannon Ballistic Gun Heavy Assault Rifle Launcher Rocket Launcher Slashing Weapon Katana Build | -11 -10 -9 -9 -9 -8 -8 -7 -6 -6 -6 -6 -5 -5 -4 -3 -2 -1 ------- Run | Scr Mat Mat Min Exi Min Mat Fac Fac Low Low Dat Pro Fac Fac Res Res Acc Slots Evolved 18 | . . 2 . . . 2 2 2 . . . . 2 2 2 2 2 Power 1 | . . . . . . . . . . . . . 1 . . . . Propulsion 3 | . . . . . . 1 1 . . . . . 1 . . . . Utility 13 | . . 1 . . . 1 1 2 . . . . . 2 2 2 2 Weapon 1 | . . 1 . . . . . . . . . . . . . . . Parts Attached 154 | 2 4 17 4 5 . 34 18 3 2 . . 3 8 3 31 10 10 Power 20 | . . 1 . . . 4 2 3 . . . . 1 1 4 2 2 Engine 7 | . . 1 . . . 4 . 1 . . . . . . . 1 . Core 7 | . . . . . . . 2 2 . . . . 1 1 1 . . Reactor 6 | . . . . . . . . . . . . . . . 3 1 2 Propulsion 53 | 2 . 4 1 1 . 13 4 . . . . 1 3 2 13 5 4 Treads 18 | 2 . 4 1 1 . 9 . . . . . . . . . . 1 Leg . | . . . . . . . . . . . . . . . . . . Wheel 1 | . . . . . . . . . . . . . . . 1 . . Hover 6 | . . . . . . . . . . . . . 1 . 4 1 . Flight 28 | . . . . . . 4 4 . . . . 1 2 2 8 4 3 Utility 40 | . 1 5 1 4 . 4 7 . 2 . . . 1 . 9 3 3 Device 5 | . . . . . . . . . 1 . . . 1 . 1 2 . Storage 14 | . . 3 . 3 . . 2 . . . . . . . 5 1 . Processor 4 | . . . . . . . . . 1 . . . . . 1 . 2 Hackware 3 | . . . . . . . 1 . . . . . . . 1 . 1 Protection 14 | . 1 2 1 1 . 4 4 . . . . . . . 1 . . Artifact . | . . . . . . . . . . . . . . . . . . Weapon 41 | . 3 7 2 . . 13 5 . . . . 2 3 . 5 . 1 Energy Gun 15 | . 3 6 1 . . 5 . . . . . . . . . . . Energy Cannon 7 | . . 1 . . . 4 . . . . . . . . 1 . 1 Ballistic Gun 17 | . . . 1 . . 3 5 . . . . 2 2 . 4 . . Ballistic Cannon . | . . . . . . . . . . . . . . . . . . Launcher 1 | . . . . . . 1 . . . . . . . . . . . Special Weapon . | . . . . . . . . . . . . . . . . . . Impact Weapon . | . . . . . . . . . . . . . . . . . . Slashing Weapon 1 | . . . . . . . . . . . . . 1 . . . . Piercing Weapon . | . . . . . . . . . . . . . . . . . . Special Melee Weapon . | . . . . . . . . . . . . . . . . . . Unidentified Prototypes 12 | . . 2 . . . 3 1 1 . . . . 1 1 1 1 1 Parts Lost 65 | . . 1 4 . . 2 1 . 1 2 . 5 5 1 25 7 11 Power 7 | . . . . . . . . . . . . 1 . . 3 2 1 Propulsion 28 | . . . 1 . . . . . 1 1 . 2 2 1 12 3 5 Utility 19 | . . . 1 . . . 1 . . 1 . 1 2 . 7 2 4 Weapon 11 | . . 1 2 . . 2 . . . . . 1 1 . 3 . 1 Highest Loss Streak 21 | . . 1 4 . . 1 1 . 1 2 . 3 5 1 21 7 8 Average Slot Usage (%) 74 | . 87 99 89 86 88 88 76 64 56 53 40 28 27 14 25 36 16 Engine 7 | . 14 11 11 11 11 9 . . . . . . . . . 3 . Treads 15 | . 28 22 14 15 22 25 . . . . . . . . . . . Flight 4 | . . . . . . . 29 26 25 20 13 9 7 5 6 11 3 Storage 11 | . 14 17 22 17 11 9 13 13 . . . . . . 6 1 3 Hackware 1 | . . . . . . . 6 6 6 6 6 6 5 5 3 4 1 Protection 9 | . 2 15 10 10 11 18 6 6 6 6 6 . . . . . . Energy Gun 14 | . 27 32 24 22 22 6 . . . . . . . . . . . Energy Cannon 2 | . . . . . . 11 3 . . . . . . . . . . Ballistic Gun 4 | . . . 7 11 11 8 6 6 6 6 . . . . 2 . . Naked Turns . | . . . . . . . . . . . . . . . . . . Heaviest Build 87 | 12 22 67 71 87 28 37 37 23 19 15 11 11 10 10 18 32 28 Greatest Support 90 | 40 40 40 40 40 40 60 24 24 24 18 12 12 16 10 90 53 70 Greatest Overweight (x) 5 | . . 1 3 4 . 5 1 . . . . 1 . . 1 . 2 Average Overweight (x) . | . . . 2 1 . . . . . . . . . . . . . Largest Inventory Capacity 32 | 6 6 18 18 32 24 24 24 24 24 4 4 4 4 4 24 8 8 Average Capacity 14 | 6 6 12 18 20 24 24 24 24 5 4 4 4 4 4 4 5 7 Most Carried 24 | 6 6 14 15 18 18 24 24 24 24 4 4 4 4 4 4 8 8 Average Carried 12 | 6 5 9 12 14 18 23 23 23 4 3 4 3 3 3 3 2 5 Final Capacity 24 | 6 6 18 18 24 24 24 24 24 4 4 4 4 4 4 4 8 4 Final Carried 24 | 6 6 14 12 18 18 24 24 24 3 4 4 4 3 4 2 8 3 Class Distribution -------------------- 43% | Mutant 16% | Hauler-Tank 11% | Scavenger-Tank 7% | Hauler-Mutant 7% | Hauler-Sprinter 5% | Tank 4% | Sprinter Dominant Class ---------------- Mutant | -10/Materials Scavenger-Tank | -9/Materials Mutant | -9/Mines Hauler-Tank | -9/Exiles Hauler-Skirmisher | -8/Mines Hauler-Tank | -8/Materials Hauler-Sprinter | -7/Factory Hauler-Sprinter | -6/Factory Sprinter | -6/Lower Caves Sprinter | -6/Lower Caves Mutant | -6/Data Miner Mutant | -5/Proximity Caves Mutant | -5/Factory Mutant | -4/Factory Mutant | -3/Research Mutant | -2/Research Mutant | -1/Access Resources | -11 -10 -9 -9 -9 -8 -8 -7 -6 -6 -6 -6 -5 -5 -4 -3 -2 -1 ----------- Run | Scr Mat Mat Min Exi Min Mat Fac Fac Low Low Dat Pro Fac Fac Res Res Acc Matter Collected 1925 | 220 40 296 115 . . 678 99 . . 59 . 151 82 . 142 17 26 Remotely . | . . . . . . . . . . . . . . . . . . Salvage Created 3693 | . 532 864 439 . . 1306 127 268 . . . 26 22 . 92 17 . Parts 212 | . 19 56 27 . . 72 9 18 . . . 2 3 . 5 1 . Haulers Intercepted 6 | . 1 3 . . . 2 . . . . . . . . . . . Recyclers Shooed 1 | . . . . . . 1 . . . . . . . . . . . Parts Field Recycled . | . . . . . . . . . . . . . . . . . . Retrieved Matter . | . . . . . . . . . . . . . . . . . . Parts Self-Destructed 7 | . . . . . . . . . . . . 7 . . . . . Prevented . | . . . . . . . . . . . . . . . . . . Kills | -11 -10 -9 -9 -9 -8 -8 -7 -6 -6 -6 -6 -5 -5 -4 -3 -2 -1 ------- Run | Scr Mat Mat Min Exi Min Mat Fac Fac Low Low Dat Pro Fac Fac Res Res Acc Combat Hostiles Destroyed 74 | . 10 16 11 . . 25 4 3 . . . 1 1 . 3 . . Melee 1 | . . . . . . . . . . . . . 1 . . . . Guns 50 | . 9 14 10 . . 10 3 . . . . 1 . . 3 . . Cannons 9 | . . . . . . 8 1 . . . . . . . . . . AOE 11 | . . 2 1 . . 5 . 3 . . . . . . . . . Classes Destroyed 14 | . 2 5 1 . . 4 1 1 . . . . . . . . . Worker 2 | . . . . . . 1 . . . . . . . . . 1 . Builder 8 | . . 1 1 . . 2 . 4 . . . . . . . . . Tunneler 1 | . . . . . . 1 . . . . . . . . . . . Hauler 6 | . 1 3 . . . 2 . . . . . . . . . . . Recycler 1 | . . . . . . 1 . . . . . . . . . . . Mechanic 1 | . . . . . . . . 1 . . . . . . . . . Operator 1 | . . . . . . 1 . . . . . . . . . . . Watcher 4 | . . 2 . . . 1 . 1 . . . . . . . . . Swarmer 27 | . . 5 3 . . 8 3 3 . . . 1 1 . 3 . . Grunt 31 | . 10 6 5 . . 10 . . . . . . . . . . . Brawler 3 | . . 1 1 . . 1 . . . . . . . . . . . Duelist 3 | . . . 2 . . 1 . . . . . . . . . . . Sentry 9 | . . 4 . . . 5 . . . . . . . . . . . Programmer 1 | . . . . . . . 1 . . . . . . . . . . Best Kill Streak 9 | . 2 6 6 . . 8 3 9 . . . 1 1 . 1 1 . Combat Bots Only 6 | . 3 6 6 . . 6 3 3 . . . 1 1 . 1 . . Max Kills in Single Turn 5 | . 1 1 2 . . 3 1 5 . . . 1 1 . 1 1 . Gunslinging 1 | . . . . . . 1 . . . . . . . . . . . Exploded 2 | . . 1 1 . . 2 . 2 . . . . . . . . . Melee 1 | . . . . . . . . . . . . . 1 . . . . Uniques/NPCs Destroyed . | . . . . . . . . . . . . . . . . . . Combat | -11 -10 -9 -9 -9 -8 -8 -7 -6 -6 -6 -6 -5 -5 -4 -3 -2 -1 -------- Run | Scr Mat Mat Min Exi Min Mat Fac Fac Low Low Dat Pro Fac Fac Res Res Acc Damage Taken 11925 | . 457 550 460 . 40 1158 267 228 135 97 . 337 725 141 3490 802 3038 Core 4305 | . 83 91 101 . . 53 29 58 13 18 . 134 475 67 1280 283 1620 Absorbed by Shields . | . . . . . . . . . . . . . . . . . . Core Remaining (%) 70 | 100 66 . . . 52 90 95 . . . . 73 52 94 1 80 . Volleys Fired 188 | . 36 36 21 . . 63 7 6 2 . . 6 . . 11 . . Largest 3 | . 2 3 3 . . 3 3 1 1 . . 1 . . 2 . . Hottest 168 | . 90 135 135 . . 168 109 28 28 . . 28 . . 60 . . Shots Fired 410 | . 71 91 50 . . 154 18 6 2 . . 6 . . 12 . . Gun 330 | . 71 91 50 . . 78 14 6 2 . . 6 . . 12 . . Cannon 76 | . . . . . . 72 4 . . . . . . . . . . Launcher 4 | . . . . . . 4 . . . . . . . . . . . Special . | . . . . . . . . . . . . . . . . . . Kinetic 82 | . . . 2 . . 40 14 6 2 . . 6 . . 12 . . Thermal 31 | . 21 . . . . 10 . . . . . . . . . . . Explosive 4 | . . . . . . 4 . . . . . . . . . . . Electromagnetic 293 | . 50 91 48 . . 100 4 . . . . . . . . . . Robot Hit Streak 18 | . 10 9 7 . . 18 3 3 1 . . 3 . . 4 . . Robot Miss Streak 6 | . 3 5 5 . . 4 3 3 6 . . 5 . . 1 . . Penetration Max 1 | . . . . . . . 1 . . . . . . . . . . Secondary Targets 11 | . . . 5 . . 5 1 . . . . . . . . . . Max Gunslinging Chain 1 | . . . 1 . . 1 1 . . . . . . . . . . Shots Hit Robots 288 | . 53 58 34 . . 108 9 5 1 . . 4 7 . 9 . . Core Hits 201 | . 24 33 19 . . 59 6 37 . . . 4 1 . 11 1 6 Critical Hits . | . . . . . . . . . . . . . . . . . . Critical Kills . | . . . . . . . . . . . . . . . . . . Critical Parts Destroyed . | . . . . . . . . . . . . . . . . . . Melee Attacks 9 | . . . . . . . . . . . . . 9 . . . . Impact . | . . . . . . . . . . . . . . . . . . Slashing 9 | . . . . . . . . . . . . . 9 . . . . Piercing . | . . . . . . . . . . . . . . . . . . Sneak Attacks . | . . . . . . . . . . . . . . . . . . Combat Hostiles . | . . . . . . . . . . . . . . . . . . Follow-up Attacks . | . . . . . . . . . . . . . . . . . . Damage Inflicted 6194 | . 747 781 633 . . 2419 189 847 24 . . 64 219 1 231 18 21 Guns 3077 | . 671 655 476 . . 753 130 98 24 . . 64 . . 206 . . Cannons 1289 | . . . . . . 1230 59 . . . . . . . . . . Explosions 1523 | . 74 126 149 . . 425 . 749 . . . . . . . . . Melee 214 | . . . . . . . . . . . . . 214 . . . . Ramming 91 | . 2 . 8 . . 11 . . . . . . 5 1 25 18 21 Kinetic 813 | . . . 31 . . 260 130 98 24 . . 64 . . 206 . . Thermal 760 | . 216 126 149 . . 269 . . . . . . . . . . . Explosive 262 | . . . . . . 262 . . . . . . . . . . . Electromagnetic 4054 | . 529 655 445 . . 1617 59 749 . . . . . . . . . Impact . | . . . . . . . . . . . . . . . . . . Slashing 214 | . . . . . . . . . . . . . 214 . . . . Piercing . | . . . . . . . . . . . . . . . . . . Highest Corruption 5 | . 2 . . . . 5 1 1 1 1 1 1 . . 3 . 5 Average Corruption 2 | . 2 . . . . 5 1 1 1 1 1 1 . . 1 . 3 Corruption Purged . | . . . . . . . . . . . . . . . . . . Effects 16 | . 1 . . . . 13 . . . . . . . . 1 . 1 Message Errors 6 | . 1 . . . . 4 . . . . . . . . . . 1 Matter Fused 3 | . . . . . . 3 . . . . . . . . . . . Data Loss (minor) 4 | . . . . . . 3 . . . . . . . . 1 . . Misfires 2 | . . . . . . 2 . . . . . . . . . . . Targeting Errors 1 | . . . . . . 1 . . . . . . . . . . . Overload Shots . | . . . . . . . . . . . . . . . . . . Overflow Damage 42 | . . . 13 . . 18 . . . . . . 11 . . . . Projectiles 18 | . . . . . . 18 . . . . . . . . . . . Explosions 13 | . . . 13 . . . . . . . . . . . . . . Melee 11 | . . . . . . . . . . . . . 11 . . . . Knockbacks 1 | . . . . . . 1 . . . . . . . . . . . Impact 1 | . . . . . . 1 . . . . . . . . . . . Kinetic . | . . . . . . . . . . . . . . . . . . Secondary . | . . . . . . . . . . . . . . . . . . Self-Inflicted Damage 220 | . 34 99 34 . . . . 26 . . . . 2 . 7 9 9 Shots 7 | . 1 3 1 . . . . 2 . . . . . . . . . Rammed 32 | . 3 . 2 . . 3 . . . . . . 1 1 14 1 7 Targets Rammed 33 | . 3 . 2 . . 4 . . . . . . 1 1 14 1 7 Kicked . | . . . . . . . . . . . . . . . . . . Crushed 1 | . . . . . . 1 . . . . . . . . . . . Highest Temperature 537 | . 204 475 429 . . 537 156 13 . . . . . . . . . Average Temperature 141 | . 65 139 214 . . 163 52 8 . . . . . . . . . Received Heat Transfer 1347 | . 231 114 60 . 27 468 . 57 . 27 . 12 27 18 72 108 126 Effects 31 | . . 9 8 . . 14 . . . . . . . . . . . Shutdowns 8 | . . 3 2 . . 3 . . . . . . . . . . . Energy Bleed 7 | . . 5 2 . . . . . . . . . . . . . . Interference 9 | . . 1 3 . . 5 . . . . . . . . . . . Matter Decay 1 | . . . . . . 1 . . . . . . . . . . . Short Circuit 3 | . . . . . . 3 . . . . . . . . . . . Damage (minor) 2 | . . . 1 . . 1 . . . . . . . . . . . Damage (major) 1 | . . . . . . 1 . . . . . . . . . . . Siege Activations . | . . . . . . . . . . . . . . . . . . Robots Corrupted 3 | . 1 . . . . 2 . . . . . . . . . . . Combat Hostiles 3 | . 1 . . . . 2 . . . . . . . . . . . Parts Fried 19 | . 4 3 1 . . 7 . 4 . . . . . . . . . Impact Corruptions . | . . . . . . . . . . . . . . . . . . Robots Melted . | . . . . . . . . . . . . . . . . . . Combat Hostiles . | . . . . . . . . . . . . . . . . . . Parts Melted . | . . . . . . . . . . . . . . . . . . Heat Transferred 1147 | . 475 50 250 . . 372 . . . . . . . . . . . Parts Sabotaged . | . . . . . . . . . . . . . . . . . . Parts Stolen 3 | . . . . . . . . . 2 1 . . . . . . . Parts Stripped . | . . . . . . . . . . . . . . . . . . Power Chain Reactions 11 | . 2 3 3 . . 2 . 1 . . . . . . . . . Missiles Intercepted . | . . . . . . . . . . . . . . . . . . Alert | -11 -10 -9 -9 -9 -8 -8 -7 -6 -6 -6 -6 -5 -5 -4 -3 -2 -1 ------- Run | Scr Mat Mat Min Exi Min Mat Fac Fac Low Low Dat Pro Fac Fac Res Res Acc Peak Influence 829 | . 155 424 304 . . 586 505 829 . . . . 183 98 162 280 172 Initial 247 | . . 65 49 . . . 217 247 . . . . 57 89 51 30 152 Average 198 | . 62 253 253 . . 239 372 538 . . . . 94 92 96 135 144 Maximum Alert Level 3 | . . 2 1 . . 2 2 3 . . . . . . . 1 . Low Security (%) 57 | 100 100 26 18 . 100 48 . . . . . . 100 100 100 55 100 Level 1 29 | . . 70 81 . . 18 43 47 . . . . . . . 44 . Level 2 12 | . . 2 . . . 32 56 5 . . . . . . . . . Level 3 1 | . . . . . . . . 47 . . . . . . . . . Level 4 . | . . . . . . . . . . . . . . . . . . Level 5 . | . . . . . . . . . . . . . . . . . . High Security . | . . . . . . . . . . . . . . . . . . Max Security . | . . . . . . . . . . . . . . . . . . Squads Dispatched 22 | . 3 1 . . . 5 3 1 . . . . 1 . 2 4 2 Investigation 9 | . 1 . . . . 4 . . . . . . . . . 3 1 Extermination 1 | . . . . . . . . . . . . . . . 1 . . Reinforcement 9 | . 2 1 . . . 1 . 1 . . . . 1 . 1 1 1 Assault . | . . . . . . . . . . . . . . . . . . Garrison 3 | . . . . . . . 3 . . . . . . . . . . Intercept . | . . . . . . . . . . . . . . . . . . Construction Impeded . | . . . . . . . . . . . . . . . . . . Haulers Reinforced 1 | . . . . . . . . . . . . . . . . . 1 Stealth | -11 -10 -9 -9 -9 -8 -8 -7 -6 -6 -6 -6 -5 -5 -4 -3 -2 -1 --------- Run | Scr Mat Mat Min Exi Min Mat Fac Fac Low Low Dat Pro Fac Fac Res Res Acc Distress Signals 11 | . 1 2 1 . . 3 . . . . . . 1 . 2 . 1 Communications Jammed . | . . . . . . . . . . . . . . . . . . Distress Signals . | . . . . . . . . . . . . . . . . . . Times Spotted 236 | . 25 27 10 . 3 38 11 13 8 11 . 5 16 4 23 22 20 Peak Tracking Total 20 | . 3 8 3 . 3 7 4 3 3 10 . 4 8 4 13 20 16 Tactical Retreats 33 | . 6 1 1 . . 3 3 4 1 2 . . 2 . 7 1 2 Traps | -11 -10 -9 -9 -9 -8 -8 -7 -6 -6 -6 -6 -5 -5 -4 -3 -2 -1 ------- Run | Scr Mat Mat Min Exi Min Mat Fac Fac Low Low Dat Pro Fac Fac Res Res Acc Traps Triggered 6 | . 3 . . . . 1 . 1 . . . . . 1 . . . Indirectly 1 | . . . . . . . . 1 . . . . . . . . . Trap Hack Attempts . | . . . . . . . . . . . . . . . . . . Triggered . | . . . . . . . . . . . . . . . . . . Disarmed . | . . . . . . . . . . . . . . . . . . Reprogrammed . | . . . . . . . . . . . . . . . . . . Reused . | . . . . . . . . . . . . . . . . . . Traps Extracted . | . . . . . . . . . . . . . . . . . . Installed . | . . . . . . . . . . . . . . . . . . Triggered 1 | . 1 . . . . . . . . . . . . . . . . Machines | -11 -10 -9 -9 -9 -8 -8 -7 -6 -6 -6 -6 -5 -5 -4 -3 -2 -1 ---------- Run | Scr Mat Mat Min Exi Min Mat Fac Fac Low Low Dat Pro Fac Fac Res Res Acc Machines Disabled 24 | . . 1 . . . 2 . 21 . . . . . . . . . Max in Single Turn 6 | . . 1 . . . 1 . 6 . . . . . . . . . Garrison Access 2 | . . . . . . . . . . . . . . . 1 1 . Machines Sabotaged . | . . . . . . . . . . . . . . . . . . Garrisons Compromised . | . . . . . . . . . . . . . . . . . . Overloaded Fab Kills . | . . . . . . . . . . . . . . . . . . Fab Network Shutdowns . | . . . . . . . . . . . . . . . . . . Hacking | -11 -10 -9 -9 -9 -8 -8 -7 -6 -6 -6 -6 -5 -5 -4 -3 -2 -1 --------- Run | Scr Mat Mat Min Exi Min Mat Fac Fac Low Low Dat Pro Fac Fac Res Res Acc Machines Accessed 45 | . 5 7 . 1 . 8 5 2 . . 4 . 2 2 4 3 2 Terminals 27 | . 4 5 . . . 5 3 1 . . . . 2 1 2 2 2 Fabricators 2 | . . . . . . . 1 . . . . . . . 1 . . Repair Stations 6 | . 1 1 . . . 1 1 1 . . . . . 1 . . . Recycling Units 1 | . . . . . . 1 . . . . . . . . . . . Scanalyzers 2 | . . 1 . . . 1 . . . . . . . . . . . Garrison Access 2 | . . . . . . . . . . . . . . . 1 1 . Total Hacks 149 | . 14 25 . 1 . 24 17 5 . . 30 . 5 7 10 8 3 Successful 93 | . 8 13 . 1 . 11 10 4 . . 30 . 3 5 5 3 . Failed 56 | . 6 12 . . . 13 7 1 . . . . 2 2 5 5 3 Catastrophic 6 | . . . . . . . . . . . . . . . 1 3 2 Database Lockouts . | . . . . . . . . . . . . . . . . . . Manual 64 | . 12 20 . 1 . 10 7 3 . . . . 3 . 2 5 1 Terminals 82 | . 12 21 . . . 15 8 3 . . . . 5 3 6 6 3 Fabricators 4 | . . . . . . . 2 . . . . . . . 2 . . Repair Stations 19 | . 2 2 . . . 2 7 2 . . . . . 4 . . . Recycling Units 3 | . . . . . . 3 . . . . . . . . . . . Scanalyzers 6 | . . 2 . . . 4 . . . . . . . . . . . Garrison Access 4 | . . . . . . . . . . . . . . . 2 2 . Terminal Hacks 48 | . 2 2 . 1 . 5 2 . . . 30 . 2 1 2 1 . Record 12 | . . . . . . . . . . . 11 . 1 . . . . Part Schematic 9 | . . . . . . . . . . . 9 . . . . . . Robot Schematic 7 | . . . . . . . . . . . 7 . . . . . . Robot Analysis 1 | . . . . . . . 1 . . . . . . . . . . Prototype ID Bank 4 | . . . . . . 1 . . . . 3 . . . . . . Branch Access Points 1 | . . . . . . 1 . . . . . . . . . . . Emergency Access Points 1 | . . . . . . 1 . . . . . . . . . . . Terminal Index 2 | . . . . . . . 1 . . . . . . . . 1 . Fabricator Index 1 | . . . . . . . . . . . . . . 1 . . . Scanalyzer Index 1 | . . . . . . 1 . . . . . . . . . . . Alert Level 2 | . 1 . . . . . . . . . . . . . 1 . . Unreport Threat 3 | . 1 1 . . . 1 . . . . . . . . . . . Zone Layout 3 | . . 1 . . . . . . . . . . 1 . 1 . . EX-Prototype ID Bank 1 | . . . . 1 . . . . . . . . . . . . . Fabricator Hacks 2 | . . . . . . . 1 . . . . . . . 1 . . Network Status 1 | . . . . . . . . . . . . . . . 1 . . Build 1 | . . . . . . . 1 . . . . . . . . . . Repair Station Hacks 17 | . 2 2 . . . 2 5 2 . . . . . 4 . . . Scan Component 9 | . 1 1 . . . 1 3 1 . . . . . 2 . . . Repair 8 | . 1 1 . . . 1 2 1 . . . . . 2 . . . Recycling Unit Hacks 1 | . . . . . . 1 . . . . . . . . . . . Retrieve Components 1 | . . . . . . 1 . . . . . . . . . . . Scanalyzer 3 | . . 2 . . . 1 . . . . . . . . . . . Insert Component 2 | . . 1 . . . 1 . . . . . . . . . . . Analyze 1 | . . 1 . . . . . . . . . . . . . . . Garrison Access Hacks 1 | . . . . . . . . . . . . . . . 1 . . Seal Access 1 | . . . . . . . . . . . . . . . 1 . . Unauthorized Hacks 21 | . 4 7 . . . 2 2 2 . . . . 1 . 1 2 . Terminals 19 | . 4 7 . . . 1 2 2 . . . . 1 . 1 1 . Track 7 | . 2 4 . . . . . . . . . . 1 . . . . Assimilate 2 | . . . . . . . . 1 . . . . . . 1 . . Botnet 10 | . 2 3 . . . 1 2 1 . . . . . . . 1 . Fabricators . | . . . . . . . . . . . . . . . . . . Repair Stations . | . . . . . . . . . . . . . . . . . . Recycling Units 1 | . . . . . . 1 . . . . . . . . . . . Mask 1 | . . . . . . 1 . . . . . . . . . . . Scanalyzers . | . . . . . . . . . . . . . . . . . . Garrison Access 1 | . . . . . . . . . . . . . . . . 1 . Jam 1 | . . . . . . . . . . . . . . . . 1 . Data Cores Recovered 1 | . . . . . . 1 . . . . . . . . . . . Used . | . . . . . . . . . . . . . . . . . . Hacking Detections 36 | . 5 5 . . . 7 5 2 . . . . 2 2 3 3 2 Full Trace Events 6 | . . . . . . 3 . . . . . . . . . 2 1 Feedback Events 1 | . . . . . . . . . . . . . . . . . 1 Hackware Fried 1 | . . . . . . . . . . . . . . . . . 1 Feedback Blocked . | . . . . . . . . . . . . . . . . . . Robot Schematics Acquired 7 | . . . . . . . . . . . 7 . . . . . . Robots Built . | . . . . . . . . . . . . . . . . . . Matter . | . . . . . . . . . . . . . . . . . . Time . | . . . . . . . . . . . . . . . . . . Total Robot Build Rating . | . . . . . . . . . . . . . . . . . . Part Schematics Acquired 10 | . . 1 . . . . . . . . 9 . . . . . . Parts Built 2 | . . . . . . . 2 . . . . . . . . . . Matter 168 | . . . . . . . 168 . . . . . . . . . . Time 42 | . . . . . . . 42 . . . . . . . . . . Total Part Build Rating 8 | . . . . . . . 8 . . . . . . . . . . Parts Repaired 8 | . 1 1 . . . 1 2 1 . . . . . 2 . . . Time 236 | . 16 51 . . . 32 35 38 . . . . . 64 . . . Parts Recycled . | . . . . . . . . . . . . . . . . . . Recycled Matter . | . . . . . . . . . . . . . . . . . . Retrieved Matter . | . . . . . . . . . . . . . . . . . . Retrieved Components 2 | . . . . . . 2 . . . . . . . . . . . Parts Scanalyzed 2 | . . 1 . . . 1 . . . . . . . . . . . Part Schematics Acquired 1 | . . 1 . . . . . . . . . . . . . . . Parts Damaged . | . . . . . . . . . . . . . . . . . . Bothacking | -11 -10 -9 -9 -9 -8 -8 -7 -6 -6 -6 -6 -5 -5 -4 -3 -2 -1 ------------ Run | Scr Mat Mat Min Exi Min Mat Fac Fac Low Low Dat Pro Fac Fac Res Res Acc Used RIF Installer . | . . . . . . . . . . . . . . . . . . Robots Hacked . | . . . . . . . . . . . . . . . . . . Non-combat . | . . . . . . . . . . . . . . . . . . Combat . | . . . . . . . . . . . . . . . . . . Robot Hacks Applied . | . . . . . . . . . . . . . . . . . . Relay Couplers Released . | . . . . . . . . . . . . . . . . . . Robots Rewired 2 | . . . . . . 2 . . . . . . . . . . . Allies Hacked . | . . . . . . . . . . . . . . . . . . Hacks Repelled . | . . . . . . . . . . . . . . . . . . Allies | -11 -10 -9 -9 -9 -8 -8 -7 -6 -6 -6 -6 -5 -5 -4 -3 -2 -1 -------- Run | Scr Mat Mat Min Exi Min Mat Fac Fac Low Low Dat Pro Fac Fac Res Res Acc Total Allies 5 | . . . . . . 2 . 1 . . . 1 . . 1 . . Largest Group 1 | . . . . . . 1 . 1 . . . 1 . . 1 . . Highest-Rated Group 94 | . . . . . . 21 . 26 . . . 94 . . 44 . . Highest-Rated Ally 94 | . . . . . . 21 . 26 . . . 94 . . 44 . . Total Orders 1 | . . . . . . 1 . . . . . . . . . . . ROAM 1 | . . . . . . 1 . . . . . . . . . . . Ally Attacks 26 | . . . . . . 11 . . . . . 15 . . . . . Total Damage 837 | . . . . . . 363 . . . . . 474 . . . . . Kills 9 | . . . . . . 4 . . . . . 5 . . . . . Allies Corrupted . | . . . . . . . . . . . . . . . . . . Allies Melted . | . . . . . . . . . . . . . . . . . . Intel | -11 -10 -9 -9 -9 -8 -8 -7 -6 -6 -6 -6 -5 -5 -4 -3 -2 -1 ------- Run | Scr Mat Mat Min Exi Min Mat Fac Fac Low Low Dat Pro Fac Fac Res Res Acc Robot Analysis Total 1 | . . . . . . . 1 . . . . . . . . . . Derelict Logs Recovered 6 | . . . . . . . . . 3 1 . 2 . . . . . Drone Launches . | . . . . . . . . . . . . . . . . . . Drone Recoveries . | . . . . . . . . . . . . . . . . . . Exploration | -11 -10 -9 -9 -9 -8 -8 -7 -6 -6 -6 -6 -5 -5 -4 -3 -2 -1 ------------- Run | Scr Mat Mat Min Exi Min Mat Fac Fac Low Low Dat Pro Fac Fac Res Res Acc Turns Passed 6748 | 7 906 1102 414 669 107 1377 316 180 154 112 27 155 145 121 649 154 153 Spaces Moved 5312 | 4 427 455 158 334 30 527 466 311 288 349 80 274 240 110 690 274 295 Core 167 | . . . . . . . . . . . . . . . 78 34 55 Treads 1931 | 2 427 455 158 334 30 520 4 . . . . . . . . . 1 Legs 2 | 2 . . . . . . . . . . . . . . . . . Wheels . | . . . . . . . . . . . . . . . . . . Hover 37 | . . . . . . . . . . . . . 1 . 36 . . Flight 3175 | . . . . . . 7 462 311 288 349 80 274 239 110 576 240 239 Fastest Speed 29 | 120 160 160 180 160 160 32 29 29 29 32 34 34 32 37 34 31 37 Average Speed 87 | 140 160 173 210 196 160 171 30 29 29 32 34 34 34 38 44 36 43 Slowest Speed 440 | 160 160 180 220 240 160 440 180 29 32 34 34 105 60 40 120 50 160 Overloaded Moves . | . . . . . . . . . . . . . . . . . . Propulsion Burnouts . | . . . . . . . . . . . . . . . . . . Robots Hopped 57 | . . . . . . . 3 1 3 6 . . 5 1 22 14 2 Cave-ins Triggered . | . . . . . . . . . . . . . . . . . . Exploration Rate (%) 34 | 2 64 49 40 66 14 43 17 11 57 62 69 59 8 4 24 8 15 Regions Visited 17 Branch Regions 7 Pre-discovered Areas 2 | . . . . . . . . . 1 . 1 . . . . . . Known Exits Taken 2 | . . . . . . . . . . . . 1 1 . . . . Unknown Exits Taken 15 | 1 1 1 1 1 1 1 1 1 1 1 1 . . 1 1 1 . Scrap Searched 3 | . . . . . . . . . 1 . . 2 . . . . . Spaces Dug . | . . . . . . . . . . . . . . . . . . Terrain Destroyed 92 | . 10 6 17 . . 50 . 9 . . . . . . . . . Melee . | . . . . . . . . . . . . . . . . . . Projectile . | . . . . . . . . . . . . . . . . . . AOE 92 | . 10 6 17 . . 50 . 9 . . . . . . . . . Terrain Rammed . | . . . . . . . . . . . . . . . . . . Walls Destroyed . | . . . . . . . . . . . . . . . . . . Machines Disabled . | . . . . . . . . . . . . . . . . . . Actions | -11 -10 -9 -9 -9 -8 -8 -7 -6 -6 -6 -6 -5 -5 -4 -3 -2 -1 --------- Run | Scr Mat Mat Min Exi Min Mat Fac Fac Low Low Dat Pro Fac Fac Res Res Acc Total 6992 | 5 580 689 194 347 89 879 630 394 351 343 79 327 282 187 991 310 315 Wait 1211 | . 100 171 10 1 60 184 115 70 63 . . 44 25 73 259 35 1 Move 5191 | 3 426 454 157 333 29 526 459 308 281 336 79 273 230 108 648 250 291 Hop 49 | . . . . . . . 3 1 3 6 . . 5 1 19 9 2 Pick Up 59 | . 5 4 . 5 . 24 10 2 . . . . 1 . 3 3 2 Fast Attach 75 | . 3 5 . 2 . 8 3 3 1 . . 2 7 3 23 10 5 Attach 41 | . 1 3 3 1 . 7 10 . 1 . . 1 1 . 8 . 5 Detach 22 | . . 1 . 1 . 3 8 . . 1 . 1 1 1 4 . 1 Swap 38 | 2 . 9 1 2 . 19 5 . . . . . . . . . . Drop 67 | . 6 6 . 2 . 30 10 4 . . . . 3 1 2 2 1 Fire 188 | . 36 36 21 . . 63 7 6 2 . . 6 . . 11 . . Melee 9 | . . . . . . . . . . . . . 9 . . . . Ram 19 | . . . . . . . . . . . . . . . 14 1 4 Kick . | . . . . . . . . . . . . . . . . . . Crush 12 | . 3 . 2 . . 4 . . . . . . . . . . 3 Escape Stasis . | . . . . . . . . . . . . . . . . . . Rewire 11 | . . . . . . 11 . . . . . . . . . . . Trap . | . . . . . . . . . . . . . . . . . . Miscellaneous . | . . . . . . . . . . . . . . . . . . Route ------- -11/Scrapyard -10/Materials (discovered 3 exits: *Mat / [*Min x2]) -9/Materials (discovered 3 exits: *Mat / [*Min] / [*Sto]) -9/Mines (discovered 2 exits: *Mat / *Exi) -9/Exiles -8/Mines -8/Materials -7/Factory -6/Factory -6/Lower Caves -6/Lower Caves -6/Data Miner -5/Proximity Caves -5/Factory (discovered 2 exits: *Fac x2) -4/Factory -3/Research -2/Research -1/Access History --------- Turn | Location | Event 1 | -11/Scrapyard | Discovered new exit (range 2) 8 | -11/Scrapyard | Entered Materials 183 | -10/Materials | Discovered new exit (range 7) 311 | -10/Materials | Build established: Mutant 611 | -10/Materials | Discovered new exit (range 6) 825 | -10/Materials | Repaired EM Shotgun 844 | -10/Materials | Discovered new exit (range 15) 914 | -10/Materials | Entered another Materials area 914 | -9/Materials | Evolved 2 slots: Utility x1, Weapon x1 1409 | -9/Materials | Discovered new exit (range 11) 1504 | -9/Materials | Discovered new exit (range 15) 1684 | -9/Materials | Repaired Imp. EM Shotgun 1837 | -9/Materials | Discovered new exit (range 16) 1971 | -9/Materials | Build established: Scavenger-Tank 2016 | -9/Materials | Entered Mines 2092 | -9/Mines | Discovered new exit (range 10) 2175 | -9/Mines | Lost 4 parts (1n1u2w) 2419 | -9/Mines | Deemed a non-threat by the Exiles lab entrance 2421 | -9/Mines | Discovered new exit (range 5) 2430 | -9/Mines | Entered Exiles 2439 | -9/Exiles | Build established: Mutant 2485 | -9/Exiles | Met 8R-AWN 2521 | -9/Exiles | Met EX-HEX 2694 | -9/Exiles | Met EX-BIN 2723 | -9/Exiles | Aligned with FarCom system 2725 | -9/Exiles | Given EX-Vault access code 2781 | -9/Exiles | Opened EX-Vault 2832 | -9/Exiles | Found Lightpack 2.0 2881 | -9/Exiles | Warned to stay clear of 0b10 Research branches 2915 | -9/Exiles | Found Superbattery 2996 | -9/Exiles | Met EX-DEC 3080 | -9/Exiles | Discovered new exit (range 14) 3099 | -9/Exiles | Stole two prototypes: Lightpack 2.0, Superbattery 3099 | -9/Exiles | Entered Mines 3184 | -8/Mines | Discovered new exit (range 8) 3206 | -8/Mines | Entered Materials 3206 | -8/Materials | Evolved 2 slots: Propulsion x1, Utility x1 3586 | -8/Materials | Repaired Med. Armor Plating 3794 | -8/Materials | Discovered new exit (range 7) 4186 | -8/Materials | Build established: Hauler-Mutant 4583 | -8/Materials | Entered Factory 4583 | -7/Factory | Evolved 2 slots: Propulsion x1, Utility x1 4585 | -7/Factory | FarCom data flow suspended 4627 | -7/Factory | Garrison activated, responded to threat 4811 | -7/Factory | Repaired Lgt. Nuclear Core 4829 | -7/Factory | Repaired Lgt. EM Pulse Cannon 4844 | -7/Factory | Discovered new exit (range 12) 4886 | -7/Factory | Fabricated Dynamic Insulation System? 4889 | -7/Factory | Build established: Hauler-Sprinter 4899 | -7/Factory | Entered another Factory area 4899 | -6/Factory | Evolved 2 slots: Utility x2 5061 | -6/Factory | Repaired Lgt. Nuclear Core 5078 | -6/Factory | Discovered new exit (range 4) 5079 | -6/Factory | Entered Lower Caves 5079 | -6/Lower Caves | Spotted 88-ANR(f) 5080 | -6/Lower Caves | Encountered a Master Thief 5081 | -6/Lower Caves | Spotted XN-N76(f) 5082 | -6/Lower Caves | Encountered a Master Thief 5082 | -6/Lower Caves | Superbattery stolen by Master Thief 5088 | -6/Lower Caves | Lightpack 2.0 stolen by Master Thief 5104 | -6/Lower Caves | Learned location of 1 exit from Factory 5195 | -6/Lower Caves | Learned location of 1 exit from Proximity Caves 5227 | -6/Lower Caves | Discovered new exit (range 18) 5233 | -6/Lower Caves | Entered another Lower Caves area 5233 | -6/Lower Caves | Spotted K1-RK4(f) 5233 | -6/Lower Caves | Spotted DK-RX7(f) 5234 | -6/Lower Caves | Encountered a Master Thief 5234 | -6/Lower Caves | Encountered a Master Thief 5333 | -6/Lower Caves | Learned Factory terminal intel 5340 | -6/Lower Caves | Discovered new exit (range 15) 5345 | -6/Lower Caves | Entered Data Miner 5345 | -6/Data Miner | Discovered new exit (range 6) 5352 | -6/Data Miner | Met Data Miner 5359 | -6/Data Miner | Learned location of Section 7 (-3) 5359 | -6/Data Miner | Acquired the access code to Warlord's prototype stash 5364 | -6/Data Miner | Received God Mode back door access code from Data Miner 5372 | -6/Data Miner | Entered Proximity Caves 5373 | -5/Proximity Caves | Identified exit to Factory 5375 | -5/Proximity Caves | Learned location of 1 exit from Factory 5398 | -5/Proximity Caves | Escorted by Enhanced Grunt 5444 | -5/Proximity Caves | Lost 3 parts (1n1u1w) 5527 | -5/Proximity Caves | Entered Factory 5527 | -5/Factory | Evolved 2 slots: Power x1, Propulsion x1 5528 | -5/Factory | Identified exit to Factory 5529 | -5/Factory | Loaded intel: 19 terminal locations 5672 | -5/Factory | Entered another Factory area 5672 | -4/Factory | Evolved 2 slots: Utility x2 5676 | -4/Factory | Build established: Mutant 5701 | -4/Factory | Lost 5 parts (2n2u1w) 5721 | -4/Factory | Repaired VTOL Module 5754 | -4/Factory | Repaired VTOL Module 5792 | -4/Factory | Discovered new exit (range 5) 5793 | -4/Factory | Entered Research 5793 | -3/Research | Evolved 2 slots: Utility x2 5801 | -3/Research | Spotted B-86 Titan 5889 | -3/Research | Spotted B-86 Titan 6241 | -3/Research | Spotted B-86 Titan 6285 | -3/Research | Core integrity fell below 50% 6370 | -3/Research | Core integrity fell below 20% 6404 | -3/Research | Lost 21 parts (2p10n7u2w) 6439 | -3/Research | Discovered new exit (range 7) 6442 | -3/Research | Entered another Research area 6442 | -2/Research | Evolved 2 slots: Utility x2 6547 | -2/Research | Incoming investigation squad redirected 6578 | -2/Research | Discovered new exit (range 16) 6596 | -2/Research | Entered Access 6596 | -1/Access | Evolved 2 slots: Utility x2 6617 | -1/Access | System Shield fried by hacking feedback 6640 | -1/Access | Found Prototype Processor 6640 | -1/Access | Identified Spectral Analyzer 6644 | -1/Access | Found Faulty Spectral Analyzer 6648 | -1/Access | Lost 8 parts (2p3n3u) 6696 | -1/Access | Lost 3 parts (1n1u1w) 6718 | -1/Access | Core integrity fell below 50% 6732 | -1/Access | Core integrity fell below 20% 6749 | -1/Access | Destroyed by G-73 Enforcer with Phase Gun Last Messages --------------- 06722_ Hvy. Treads destroyed. 06723_ Penetrated by Slug. 06725_ Slug penetrates Wall. 06726_ Penetrated by Slug. 06726_ Spectral Analyzer destroyed. 06726_ Penetrated by Slug. 06728_ Slammed into A-15 Conveyor. 06728_ Destabilizing: System corrupted (+2). 06728_ Penetrated by Slug. 06728_ Slug penetrates Door. 06729_ A-15 Conveyor calls for reinforcements. 06729_ ALERT: Hostile activity reported, dispatching reinforcements to area. 06729_ Wave Collapse Detector explodes. 06729_ Scanalyzer disabled. 06730_ K-01 Serf collects debris. 06735_ K-01 Serf destroyed. 06738_ Slammed into P-80 Master. 06740_ AZ9H8IQR>XTKI3BKVNSR 06740_ Slammed into P-80 Master. Map ----- +----------------------------------------------------+ | # #??????????? ???????????????????? | | # !!! #??????????? ??????????????????? | | # !!! #??????????# ???????????????????? | | # !! #??????????# ????????????????????? | | # #??????????# ?????????????????????? | | ########??????????# #?????????????????????? | | ###############???# #?????????????????????? | | # #???# #?????????????????????? | | # #???# #?????????????????????? | | # #???# #?????????????????????? | | # #???# #?????????????????????? | | # ##### #?????????????????????? | | # | / #?????????????????????? | | # ##### #?????????????????????? | | % #???# #?????????????????????? | | # #???# #?????????????????????? | | # " #???## ##?????????????????????? | | + """S""" #????# p #??????????????????????? | | #################????#p #??????????????????????? | | ?????????????????????# k #??????????????????????? | | ?????????????????????# #??????????????????????? | | ?????????????????????# #??????????????????????? | | ?????????????????????# #??????????????????????? | | ?????????????????????# ###### #???????????????? | | ?????????????????????# #???????????????? | | ?????????????????????# @ gg +???????????????? | | ?????????????????????# g #???????????????? | | ?????????????????????# ##g#???????????????? | | ?????????????????????# t #??????????????????? | | ?????????????????????+ #??????????????????? | | ?????????????????????# [ #??????????????????? | | ?????????????????????# #####??????????????????? | | ?????????????????????# #??????????????????????? | | ?????????????????????# #??????????????????????? | | ?????????????????????##+###??????????????????????? | | ?????????????????????????????????????????????????? | | ?????????????????????????????????????????????????? | | ?????????????????????????????????????????????????? | | ?????????????????????????????????????????????????? | | ?????????????????????????????????????????????????? | | ?????????????????????????????????????????????????? | | ?????????????????????????????????????????????????? | | ?????????????????????????????????????????????????? | | ?????????????????????????????????????????????????? | | ?????????????????????????????????????????????????? | | ?????????????????????????????????????????????????? | | ?????????????????????????????????????????????????? | | ?????????????????????????????????????????????????? | | ?????????????????????????????????????????????????? | | ?????????????????????????????????????????????????? | +----------------------------------------------------+ Best States ------------- Heat Dissipation 52 Energy Generation 34 Energy Capacity 2160 Matter Stores 300 Matter Capacity 300 Sight Range 24 Terrain Scan Range 20 Terrain Scan Density 210 Armor Coverage 450 Resistance: TH 25 Evasion (%) 77 Recoil Reduction 3 Offensive Hacking 10 Defensive Hacking 10 Item Schematics ----------------- Med. Armor Plating | -9/Materials | Scanalyzed Combat Drone Bay | -6/Data Miner | Free Lgt. Regenerative Plating | -6/Data Miner | Free Exp. Flexi-carbon Leg | -6/Data Miner | Free Cmb. Gravmag System | -6/Data Miner | Free Exp. Cesium-ion Thruster | -6/Data Miner | Free Triangulator | -6/Data Miner | Free Exp. Sensor Array | -6/Data Miner | Free Exp. Targeting Computer | -6/Data Miner | Free Tactical Coordination Suite | -6/Data Miner | Free Robot Schematics ------------------ S-27 Virus | -6/Data Miner | Free G-50 Soldier | -6/Data Miner | Free G-67 Veteran | -6/Data Miner | Free L-41 Fighter | -6/Data Miner | Free X-72 Disruptor | -6/Data Miner | Free P-70 Sage | -6/Data Miner | Free I-36 Angel | -6/Data Miner | Free Fabricated ------------ Dynamic Insulation System | x2 | -7/Factory | Preloaded Alien Tech Used ----------------- None Achievements -------------- None Challenges ------------ None Game ------ Seed MasterTacticalBay Manual? 0 Play Time 01:23:48 Cumulative 197.9 hours Start 2020.12.29 @ 11:30:28 End 2020.12.29 @ 13:09:53 Sessions 1 Manual Loads 0 Difficulty Rogue Special Mode None Game No. 161 Rogue 47 Adventurer 57 Explorer 57 Win Type - Total 11 Types 11/0/0/0/0/0/0/0/0 Lore% 68 Gallery% 78 Achievement% 61 Wizard Run 0 Options --------- ASCII 1 Keyboard 0 Movement Numpad Keybinds 0 Fullscreen 2 Font 18/TerminusBold Map View 76x50 Tactical HUD 1 Map Filters NONE Filters NONE Steam 1 RUN: d99e350c-a310-4a70-a8ac-8d6f6644be0f